bitfinex/quotes_BTCUSD_20241002
["timestamp","ask_amount","ask_price","bid_price","bid_amount"]
[1727876106773,0.28987067,60925.0,60924.0,0.000819]
[1727876107960,0.31287067,60925.0,60924.0,0.000819]
[1727876108177,0.31374817,60925.0,60924.0,0.000819]
[1727876108411,0.31274817,60925.0,60924.0,0.000819]
[1727876108879,0.31274817,60925.0,60924.0,0.001819]
[1727876108880,0.31874817,60925.0,60924.0,0.001819]
[1727876109097,0.29574817,60925.0,60924.0,0.001819]
[1727876109323,0.34897857,60925.0,60924.0,0.001819]
[1727876109538,0.31874817,60925.0,60924.0,0.001819]
[1727876109757,0.48074817,60925.0,60924.0,0.001819]
[1727876110500,0.31874817,60925.0,60924.0,0.001819]
[1727876110715,0.32074817,60925.0,60924.0,0.001819]
[1727876110936,0.31874817,60925.0,60924.0,0.001819]
[1727876111148,0.44929919,60925.0,60924.0,0.001819]
[1727876111387,0.31874817,60925.0,60924.0,0.001819]
[1727876111602,0.19574817,60925.0,60924.0,0.001819]
[1727876112091,0.18974817,60925.0,60924.0,0.000819]
[1727876112305,0.03773467,60925.0,60924.0,0.165957]
[1727876112533,0.012,60925.0,60924.0,0.165957]
[1727876112757,0.32824,60931.0,60924.0,0.000819]
[1727876113007,0.001638,60932.0,60926.0,0.159131]
[1727876113257,0.001638,60932.0,60931.0,0.16412]
[1727876113497,0.001638,60932.0,60931.0,0.00328185]
[1727876113722,0.001638,60932.0,60931.0,0.16412]
[1727876113985,0.164125,60929.0,60928.0,0.0788]
[1727876114230,0.164131,60927.0,60924.0,0.25588401]
[1727876114469,0.001638,60932.0,60925.0,0.03292]
[1727876114682,0.001638,60932.0,60927.0,0.03292]
[1727876114901,0.001638,60932.0,60931.0,0.16412]
[1727876115364,0.001638,60932.0,60931.0,0.76592867]
[1727876115586,0.001,60935.0,60931.0,0.73604728]
[1727876115838,0.001638,60942.0,60941.0,0.164093]
[1727876116077,0.001638,60942.0,60941.0,0.51318745]
[1727876116285,0.164024,60967.0,60959.0,0.164044]
[1727876116553,0.001638,60971.0,60959.0,0.16728177]
[1727876116773,0.24606501,60964.0,60959.0,0.164044]
[1727876116990,0.328038,60969.0,60957.0,0.328098]
[1727876116991,0.328054,60966.0,60957.0,0.328098]
[1727876117207,0.328053,60966.0,60955.0,0.328109]
[1727876117658,0.02735724,60960.0,60959.0,0.164044]
[1727876117876,0.02835724,60960.0,60959.0,0.178044]
[1727876118312,0.02793724,60960.0,60959.0,0.178044]
[1727876118965,0.02618724,60960.0,60959.0,0.178044]
[1727876119216,0.02618724,60960.0,60959.0,0.339444]
[1727876119478,0.02596324,60960.0,60959.0,0.339444]
[1727876119983,0.02496324,60960.0,60959.0,0.1614]
[1727876120193,0.02426324,60960.0,60956.0,0.03292]
[1727876120413,0.02426324,60960.0,60948.0,0.1556]
[1727876120643,0.02338824,60960.0,60959.0,0.014]
[1727876120864,0.18743224,60960.0,60959.0,0.014]
[1727876121080,0.164044,60960.0,60959.0,0.014]
[1727876121320,0.163519,60960.0,60959.0,0.014]
[1727876121581,0.16404,60961.0,60951.0,0.24606501]
[1727876121796,0.492125,60960.0,60959.0,0.011]
[1727876122017,0.001638,60971.0,60959.0,0.011]
[1727876122018,0.328037,60969.0,60959.0,0.011]
[1727876122236,0.001638,60971.0,60959.0,0.011]
[1727876122468,0.001638,60971.0,60970.0,0.164015]
[1727876122683,0.001638,60971.0,60966.0,0.1542]
[1727876122938,0.16565,60971.0,60966.0,0.318224]
[1727876123147,0.001638,60971.0,60970.0,0.164015]
[1727876124011,0.002638,60971.0,60970.0,0.164015]
[1727876124254,0.001638,60971.0,60970.0,0.164015]
[1727876125168,0.002638,60971.0,60970.0,0.178015]
[1727876125433,0.001638,60971.0,60970.0,0.44300001]
[1727876125639,0.001638,60971.0,60970.0,0.164015]
[1727876125860,0.001638,60971.0,60967.0,0.492066]
[1727876126079,0.001638,60971.0,60966.0,0.1542]
[1727876126315,0.001638,60971.0,60962.0,0.328068]
[1727876126545,0.001638,60971.0,60959.0,0.24606501]
[1727876126546,0.164043,60960.0,60959.0,0.24606501]
[1727876126994,0.001638,60971.0,60955.0,0.1603]
[1727876127239,0.24606501,60968.0,60951.0,0.24606501]
[1727876127449,0.16406,60953.0,60952.0,0.24606501]
[1727876128114,0.02572146,60960.0,60946.0,0.164078]
[1727876128115,0.16407,60950.0,60946.0,0.164078]
[1727876128366,0.164079,60946.0,60945.0,0.24606501]
[1727876128611,0.264087,60943.0,60942.0,0.000818]
[1727876130162,0.28981916,60943.0,60942.0,0.000818]
[1727876131957,0.164087,60943.0,60942.0,0.001818]
[1727876132405,0.264087,60943.0,60942.0,0.001818]
[1727876132858,0.264087,60943.0,60942.0,0.000818]
[1727876133075,0.3889442,60943.0,60942.0,0.000818]
[1727876133558,0.4119442,60943.0,60942.0,0.000818]
[1727876133793,0.1,60934.0,60924.0,0.000819]
[1727876134008,0.328201,60939.0,60924.0,0.000819]
[1727876134009,0.26413,60927.0,60924.0,0.000819]
[1727876134484,0.26413,60927.0,60926.0,0.000819]
[1727876134485,0.28713,60927.0,60926.0,0.000819]
[1727876135362,0.32832,60917.0,60913.0,0.24606501]
[1727876135582,0.264165,60914.0,60913.0,0.24606501]
[1727876135997,0.2642,60901.0,60900.0,0.24606501]
[1727876136450,0.164233,60889.0,60888.0,0.24606501]
[1727876137130,0.1,60900.0,60881.0,0.000817]
[1727876137365,0.1,60900.0,60885.0,0.24606501]
[1727876137626,0.16424,60887.0,60885.0,0.24606501]
[1727876137892,0.164241,60886.0,60885.0,0.24606501]
[1727876138127,0.328431,60896.0,60889.0,0.164232]
[1727876138375,0.328431,60896.0,60883.0,0.0022536]
[1727876138376,0.001,60889.0,60888.0,0.173235]
[1727876138611,0.16424,60887.0,60882.0,0.164251]
[1727876138842,0.02574876,60897.0,60881.0,0.000817]
[1727876139059,0.328471,60889.0,60881.0,0.000817]
[1727876139289,0.328471,60889.0,60882.0,0.24606501]
[1727876139519,0.1,60901.0,60882.0,0.24606501]
[1727876139520,0.001,60887.0,60886.0,0.164241]
[1727876139758,0.001,60887.0,60885.0,0.175243]
[1727876139986,0.164241,60886.0,60885.0,0.011]
[1727876140694,0.164252,60882.0,60881.0,0.000817]
[1727876141378,0.164252,60882.0,60881.0,0.01828662]
[1727876141617,0.164252,60882.0,60881.0,0.000817]
[1727876141862,0.164252,60882.0,60881.0,0.01828662]
[1727876142091,0.164252,60882.0,60881.0,0.000817]
[1727876142605,0.165252,60882.0,60881.0,0.01391922]
[1727876142844,0.165252,60882.0,60881.0,0.000817]
[1727876143079,0.165252,60882.0,60881.0,0.01391922]
[1727876143305,0.265252,60882.0,60881.0,0.000817]
[1727876144174,0.264252,60882.0,60881.0,0.000817]
[1727876144668,0.3563748,60882.0,60881.0,0.000817]
[1727876144902,0.265252,60882.0,60881.0,0.002817]
[1727876145132,0.264252,60882.0,60881.0,0.000817]
[1727876145998,0.264252,60882.0,60881.0,0.002817]
[1727876146254,0.366552,60882.0,60881.0,0.002817]
[1727876146478,0.28926,60879.0,60878.0,0.00082]
[1727876146702,0.28726,60879.0,60878.0,0.00082]
[1727876147150,0.98926,60879.0,60878.0,0.00082]
[1727876147379,1.15414182,60879.0,60878.0,0.00082]
[1727876147621,0.287281,60871.0,60870.0,0.000817]
[1727876147851,0.164281,60871.0,60870.0,0.000817]
[1727876148070,0.164281,60871.0,60870.0,0.01408058]
[1727876148311,0.164281,60871.0,60870.0,0.000817]
[1727876148532,0.1,60874.0,60870.0,0.01413456]
[1727876148785,0.328451,60892.0,60870.0,0.000817]
[1727876149006,0.164255,60881.0,60875.0,0.164268]
[1727876149222,0.164249,60884.0,60876.0,0.164265]
[1727876149449,0.164265,60877.0,60876.0,0.01326916]
[1727876149933,0.164265,60877.0,60870.0,0.000817]
[1727876149934,0.164281,60871.0,60870.0,0.000817]
[1727876150398,0.264281,60871.0,60870.0,0.01411097]
[1727876150621,0.29304113,60871.0,60870.0,0.000817]
[1727876150839,0.29004113,60871.0,60870.0,0.000817]
[1727876151310,0.29004113,60871.0,60870.0,0.01411097]
[1727876151504,0.29004113,60871.0,60870.0,0.000817]
[1727876151979,0.267281,60871.0,60870.0,0.000817]
[1727876152419,0.264281,60871.0,60870.0,0.000817]
[1727876152648,0.287281,60871.0,60870.0,0.000817]
[1727876153091,0.164295,60866.0,60865.0,0.000817]
[1727876153323,0.287295,60866.0,60865.0,0.000817]
[1727876153538,0.4145967,60866.0,60865.0,0.000817]
[1727876154004,0.287295,60866.0,60865.0,0.000817]
[1727876154477,0.176546,60882.0,60866.0,0.1682]
[1727876154724,0.164225,60892.0,60883.0,0.44282728]
[1727876154967,0.164221,60894.0,60880.0,0.166256]
[1727876155194,0.164221,60894.0,60868.0,0.1]
[1727876155195,0.02575366,60879.0,60876.0,0.328534]
[1727876155419,0.164224,60893.0,60878.0,0.164261]
[1727876155635,0.16422,60894.0,60879.0,0.164258]
[1727876155872,0.014,60882.0,60879.0,0.164258]
[1727876156092,0.328466,60889.0,60865.0,0.080317]
[1727876156319,0.001,60879.0,60869.0,0.164285]
[1727876156599,0.001,60879.0,60865.0,0.000817]
[1727876156820,0.001,60879.0,60865.0,0.165113]
[1727876157034,0.001,60879.0,60865.0,0.000817]
[1727876157251,0.164272,60875.0,60865.0,0.000817]
[1727876157467,0.02575818,60876.0,60865.0,0.000817]
[1727876157685,0.164274,60874.0,60865.0,0.000817]
[1727876157929,0.02575818,60876.0,60865.0,0.000817]
[1727876158142,0.164277,60873.0,60865.0,0.000817]
[1727876158356,0.328549,60874.0,60865.0,0.000817]
[1727876158357,0.16428,60872.0,60865.0,0.000817]
[1727876158580,0.328562,60872.0,60865.0,0.000817]
[1727876158807,0.1,60871.0,60865.0,0.000817]
[1727876159024,0.1,60868.0,60865.0,0.000817]
[1727876159250,0.428565,60871.0,60865.0,0.000817]
[1727876159470,0.1,60868.0,60865.0,0.010817]
[1727876159939,0.164293,60867.0,60865.0,0.010817]
[1727876160152,0.1,60868.0,60866.0,0.01128585]
[1727876160587,0.264292,60867.0,60866.0,0.01128585]
[1727876161810,0.02576241,60870.0,60868.0,0.164288]
[1727876162021,0.02576241,60870.0,60867.0,0.164292]
[1727876162248,0.02576241,60870.0,60869.0,0.01127328]
[1727876162514,0.02576241,60870.0,60869.0,0.164287]
[1727876163008,0.16426,60879.0,60870.0,0.164282]
[1727876163235,0.24644098,60890.0,60865.0,0.000817]
[1727876163236,0.02575942,60874.0,60873.0,0.164276]
[1727876163487,0.24644098,60881.0,60876.0,0.328531]
[1727876163712,0.24644098,60890.0,60880.0,0.328514]
[1727876163938,0.24644098,60890.0,60877.0,0.01123292]
[1727876164190,0.0257544,60891.0,60881.0,0.00328476]
[1727876164479,0.0257544,60891.0,60885.0,0.328487]
[1727876164713,0.164247,60884.0,60882.0,0.01121248]
[1727876164937,0.328495,60884.0,60880.0,0.24644098]
[1727876165160,0.328477,60887.0,60880.0,0.24644098]
[1727876165381,0.24644098,60895.0,60880.0,0.24644098]
[1727876165621,0.02575454,60884.0,60877.0,0.009]
[1727876165837,0.1,60889.0,60885.0,0.008]
[1727876166274,0.1,60889.0,60879.0,0.41069998]
[1727876166275,0.164236,60888.0,60879.0,0.41069998]
[1727876166501,0.33855528,60888.0,60874.0,0.03292]
[1727876166723,0.1,60889.0,60882.0,0.24644098]
[1727876166951,0.1,60885.0,60876.0,0.328536]
[1727876167174,0.1,60885.0,60875.0,0.41071098]
[1727876167414,0.1,60888.0,60878.0,0.32852]
[1727876167638,0.24644098,60892.0,60876.0,0.328535]
[1727876167870,0.24644098,60895.0,60881.0,0.328506]
[1727876168087,0.02575279,60886.0,60873.0,0.32855]
[1727876168310,0.02575279,60886.0,60879.0,0.24644098]
[1727876168535,0.328488,60885.0,60873.0,0.164274]
[1727876168745,0.164246,60885.0,60878.0,0.004]
[1727876168960,0.164246,60885.0,60875.0,0.24644098]
[1727876169171,0.02575279,60886.0,60875.0,0.24644098]
[1727876169414,0.02575279,60886.0,60881.0,0.003]
[1727876169415,0.164244,60885.0,60881.0,0.003]
[1727876169637,0.164244,60885.0,60875.0,0.41070898]
[1727876169638,0.164248,60884.0,60875.0,0.41070898]
[1727876169853,0.164247,60884.0,60875.0,0.41070998]
[1727876170072,0.24644098,60885.0,60867.0,0.000819]
[1727876170293,0.32852,60879.0,60869.0,0.164285]
[1727876170518,0.32851,60881.0,60867.0,0.000819]
[1727876170745,0.32851,60881.0,60871.0,0.164281]
[1727876170746,0.328517,60880.0,60871.0,0.164281]
[1727876170975,0.164264,60878.0,60870.0,0.164282]
[1727876171221,0.164264,60878.0,60869.0,0.24644098]
[1727876171222,0.02575628,60878.0,60869.0,0.24644098]
[1727876171452,0.02575628,60878.0,60871.0,0.164279]
[1727876171674,0.02575628,60878.0,60875.0,0.16427]
[1727876171898,0.02575628,60878.0,60877.0,0.164265]
[1727876172167,0.001,60881.0,60876.0,0.164267]
[1727876172389,0.001,60881.0,60880.0,0.164257]
[1727876172840,0.24644098,60888.0,60878.0,0.32852]
[1727876173072,0.164226,60892.0,60885.0,0.164242]
[1727876173310,0.4763,60909.0,60880.0,0.0032847]
[1727876173311,0.24644098,60903.0,60895.0,0.328431]
[1727876173531,0.24644098,60903.0,60897.0,0.328419]
[1727876173764,0.03837046,60906.0,60902.0,0.164198]
[1727876173988,0.03837046,60906.0,60899.0,0.00328374]
[1727876174216,0.36674746,60906.0,60896.0,0.04834216]
[1727876174468,0.03837046,60906.0,60900.0,0.01658544]
[1727876174679,0.03837046,60907.0,60897.0,0.24644098]
[1727876174895,0.164188,60906.0,60901.0,0.01657863]
[1727876175125,0.03837046,60907.0,60898.0,0.04834216]
[1727876175347,0.03837046,60907.0,60902.0,0.01657182]
[1727876175563,0.03837046,60907.0,60899.0,0.07251324]
[1727876175564,0.328385,60904.0,60901.0,0.04834216]
[1727876175782,0.328385,60904.0,60891.0,0.73359535]
[1727876175783,0.328421,60898.0,60895.0,0.04834216]
[1727876175995,0.328421,60898.0,60893.0,0.07251324]
[1727876175996,0.164212,60897.0,60893.0,0.04834216]
[1727876176217,0.164208,60899.0,60893.0,0.04834216]
[1727876176437,0.34644098,60906.0,60892.0,0.04834216]
[1727876176651,0.1,60905.0,60893.0,0.24644098]
[1727876176865,0.164218,60895.0,60893.0,0.24644098]
[1727876177334,0.164214,60896.0,60892.0,0.04834216]
[1727876177545,0.12574756,60898.0,60888.0,0.04834216]
[1727876177764,0.164238,60887.0,60886.0,0.24644098]
[1727876177982,0.164215,60896.0,60893.0,0.24644098]
[1727876178207,0.164211,60897.0,60891.0,0.04894676]
[1727876178427,0.0257491,60896.0,60895.0,0.164215]
[1727876178644,0.0257491,60896.0,60894.0,0.07342014]
[1727876178880,0.0257491,60896.0,60895.0,0.23763714]
[1727876179095,0.0257491,60896.0,60895.0,0.26217864]
[1727876179309,0.0257491,60896.0,60895.0,0.09796164]
[1727876179524,0.0257491,60896.0,60895.0,0.07347187]
[1727876179734,0.0257491,60896.0,60895.0,0.164217]
[1727876179949,0.0257491,60896.0,60895.0,0.09796164]
[1727876180176,0.0257491,60896.0,60894.0,0.07352967]
[1727876180177,0.3541781,60896.0,60894.0,0.07352967]
[1727876180396,0.328435,60895.0,60892.0,0.04902112]
[1727876180615,0.16423,60890.0,60889.0,0.04902112]
[1727876180887,0.16423,60890.0,60886.0,0.10496164]
[1727876180888,0.164235,60888.0,60886.0,0.007]
[1727876181129,0.328456,60891.0,60882.0,0.07352967]
[1727876181130,0.164249,60883.0,60882.0,0.07352967]
[1727876181343,0.164249,60883.0,60880.0,0.04902112]
[1727876181344,0.264254,60881.0,60880.0,0.04902112]
[1727876181552,0.328505,60882.0,60877.0,0.24644098]
[1727876181553,0.264262,60878.0,60877.0,0.24644098]
[1727876181996,0.164284,60870.0,60869.0,0.24644098]
[1727876182649,0.164289,60868.0,60865.0,0.04988129]
[1727876182865,0.264289,60868.0,60866.0,0.24644098]
[1727876183076,0.1,60868.0,60866.0,0.24644098]
[1727876183290,0.264289,60868.0,60865.0,0.04988129]
[1727876185224,0.264289,60868.0,60867.0,0.003819]
[1727876187640,0.02576172,60868.0,60867.0,0.003819]
[1727876188064,0.02576172,60868.0,60867.0,0.168111]
[1727876188279,0.02576172,60868.0,60867.0,0.18503183]
[1727876189328,0.02576172,60868.0,60867.0,0.18831721]
[1727876189551,0.02576172,60868.0,60867.0,0.02073983]
[1727876189752,0.19005072,60868.0,60867.0,0.02073983]
[1727876189964,0.19005072,60868.0,60867.0,0.003819]
[1727876190168,0.19005072,60868.0,60867.0,0.000819]
[1727876190620,0.19005072,60868.0,60867.0,0.014819]
[1727876190820,0.29005072,60868.0,60867.0,0.000819]
[1727876191026,0.29105072,60868.0,60867.0,0.000819]
[1727876191480,0.29005072,60868.0,60867.0,0.000819]
[1727876191896,0.29105072,60868.0,60867.0,0.000819]
[1727876194187,0.265289,60868.0,60867.0,0.000819]
[1727876195801,0.413089,60868.0,60867.0,0.000819]
[1727876196057,0.436089,60868.0,60867.0,0.000819]
[1727876196271,0.289295,60866.0,60865.0,0.000817]
[1727876196489,0.287295,60866.0,60865.0,0.000817]
[1727876196696,0.264295,60866.0,60865.0,0.000817]
[1727876196910,0.287295,60866.0,60865.0,0.000817]
[1727876197120,0.264295,60866.0,60865.0,0.000817]
[1727876197531,0.29006191,60866.0,60865.0,0.000817]
[1727876198374,0.29306191,60866.0,60865.0,0.001817]
[1727876198621,0.31606191,60866.0,60865.0,0.001817]
[1727876199244,0.29306191,60866.0,60865.0,0.001817]
[1727876200555,0.19006191,60866.0,60865.0,0.000817]
[1727876200772,0.19906191,60866.0,60865.0,0.001817]
[1727876200981,0.03476691,60866.0,60865.0,0.001817]
[1727876201200,0.02576691,60866.0,60865.0,0.000817]
[1727876201642,0.02576691,60866.0,60865.0,0.01495069]
[1727876201875,0.02576691,60866.0,60865.0,0.165115]
[1727876202136,0.164285,60870.0,60865.0,0.02095069]
[1727876202430,0.164295,60866.0,60865.0,0.01495069]
[1727876202853,0.164295,60866.0,60865.0,0.000817]
[1727876203708,0.164295,60866.0,60865.0,0.010817]
[1727876203918,0.165295,60866.0,60865.0,0.010817]
[1727876204129,0.164295,60866.0,60865.0,0.000817]
[1727876204338,0.264295,60866.0,60865.0,0.006817]
[1727876205239,0.29005751,60866.0,60865.0,0.006817]
[1727876206167,0.19005751,60866.0,60865.0,0.006817]
[1727876206382,0.02576251,60866.0,60865.0,0.006817]
[1727876206807,0.02576251,60866.0,60865.0,0.18521482]
[1727876207017,0.02576251,60866.0,60865.0,0.171115]
[1727876207229,0.02576251,60866.0,60865.0,0.18521482]
[1727876207667,0.02576251,60866.0,60865.0,0.18819568]
[1727876207868,0.02576251,60866.0,60865.0,0.21816482]
[1727876208077,0.02576251,60866.0,60865.0,0.21216482]
[1727876208497,0.02676251,60866.0,60865.0,0.22616482]
[1727876208709,0.02576251,60866.0,60865.0,0.21216482]
[1727876209139,0.02676251,60866.0,60865.0,0.22616482]
[1727876209586,0.02676251,60866.0,60865.0,0.19321482]
[1727876209795,0.02676251,60866.0,60865.0,0.02891682]
[1727876210906,0.02676251,60866.0,60865.0,0.22616482]
[1727876211152,0.02576251,60866.0,60865.0,0.21216482]
[1727876211374,0.001638,60881.0,60880.0,0.164257]
[1727876211590,0.001638,60881.0,60880.0,0.297207]
[1727876211803,0.001638,60881.0,60880.0,0.31116481]
[1727876212236,0.001638,60881.0,60880.0,0.33416481]
[1727876212499,0.001638,60881.0,60880.0,0.49885926]
[1727876212709,0.001638,60903.0,60892.0,0.164223]
[1727876212922,0.001638,60903.0,60882.0,0.328501]
[1727876212923,0.001638,60903.0,60889.0,0.328466]
[1727876213133,0.57485798,60899.0,60893.0,0.01404329]
[1727876213380,0.164211,60897.0,60894.0,0.01403648]
[1727876213588,0.001638,60903.0,60894.0,0.21120548]
[1727876213801,0.24644098,60898.0,60894.0,0.197169]
[1727876214016,0.24644098,60898.0,60894.0,0.21116014]
[1727876214234,0.001638,60903.0,60894.0,0.21116014]
[1727876214711,0.001638,60903.0,60894.0,0.22516014]
[1727876214930,0.001638,60903.0,60894.0,0.2498476]
[1727876215172,0.001638,60903.0,60894.0,0.34816014]
[1727876215392,0.001638,60903.0,60902.0,0.320148]
[1727876215842,0.001638,60903.0,60902.0,0.7538799]
[1727876216059,0.001638,60903.0,60902.0,0.7209299]
[1727876216512,0.001638,60903.0,60902.0,0.27810262]
[1727876217153,0.001638,60903.0,60902.0,0.17810262]
[1727876217643,0.001638,60903.0,60902.0,0.21105262]
[1727876217850,0.001638,60903.0,60902.0,0.17810262]
[1727876218069,0.001638,60903.0,60902.0,0.19210262]
[1727876218516,0.001638,60903.0,60902.0,0.17810262]
[1727876218743,0.001638,60903.0,60902.0,0.21105262]
[1727876218999,0.001638,60903.0,60902.0,0.19210262]
[1727876219220,0.001638,60903.0,60902.0,0.17810262]
[1727876219640,0.001638,60903.0,60902.0,0.21105262]
[1727876219859,0.001638,60903.0,60902.0,0.17810262]
[1727876220073,0.001638,60903.0,60902.0,0.01390462]
[1727876220286,0.001638,60903.0,60902.0,0.17810262]
[1727876220503,0.001638,60903.0,60902.0,0.18119591]
[1727876220711,0.001638,60903.0,60902.0,0.21105262]
[1727876220924,0.001638,60903.0,60902.0,0.19210262]
[1727876221156,0.001638,60903.0,60902.0,0.17810262]
[1727876221588,0.001638,60903.0,60902.0,0.19010262]
[1727876221808,0.02574198,60915.0,60914.0,0.164165]
[1727876222028,0.24644098,60929.0,60907.0,0.03295]
[1727876222029,0.24644098,60929.0,60920.0,0.164149]
[1727876222465,0.24644098,60929.0,60920.0,0.17836721]
[1727876222718,0.24644098,60929.0,60927.0,0.16413]
[1727876222933,0.24644098,60929.0,60920.0,0.01421821]
[1727876223148,0.24644098,60929.0,60925.0,0.164135]
[1727876223367,0.329821,60942.0,60926.0,0.01491391]
[1727876223579,0.164118,60932.0,60927.0,0.16413]
[1727876223806,0.16412,60931.0,60927.0,0.01490711]
[1727876224024,0.1,60941.0,60927.0,0.16499351]
[1727876224249,0.1,60941.0,60927.0,0.17903711]
[1727876224463,0.24807698,60942.0,60927.0,0.46673156]
[1727876224673,0.001636,60942.0,60928.0,0.1992]
[1727876224891,0.001636,60945.0,60939.0,0.0762]
[1727876225139,0.24644098,60946.0,60945.0,0.202032]
[1727876225438,0.24644098,60961.0,60940.0,0.10328067]
[1727876225439,0.24644098,60948.0,60947.0,0.292076]
[1727876225654,0.24644098,60961.0,60955.0,0.287055]
[1727876225871,0.24644098,60961.0,60955.0,0.72988228]
[1727876226095,0.001638,60971.0,60959.0,0.264044]
[1727876226341,0.001638,60971.0,60959.0,0.50462893]
[1727876226550,0.001638,60971.0,60959.0,0.47197522]
[1727876227420,0.16565,60971.0,60959.0,0.27928077]
[1727876227636,0.02571548,60965.0,60959.0,0.17928077]
[1727876227857,0.02571548,60965.0,60959.0,0.01523677]
[1727876228069,0.02571548,60965.0,60959.0,0.164044]
[1727876228291,0.02571548,60965.0,60959.0,0.01518524]
[1727876228508,0.165677,60960.0,60959.0,0.01518524]
[1727876228756,0.001636,60960.0,60952.0,0.24644098]
[1727876228978,0.16406,60953.0,60952.0,0.24644098]
[1727876229202,0.1532,60959.0,60944.0,0.24644098]
[1727876229425,0.164074,60948.0,60944.0,0.24644098]
[1727876229645,0.164056,60955.0,60944.0,0.24644098]
[1727876229865,0.02572503,60956.0,60944.0,0.24644098]
[1727876229866,0.35383003,60956.0,60944.0,0.24644098]
[1727876230083,0.1,60955.0,60937.0,0.24644098]
[1727876230313,0.164082,60945.0,60944.0,0.24644098]
[1727876230752,0.0785,60954.0,60926.0,0.164132]
[1727876230753,0.164113,60934.0,60926.0,0.164132]
[1727876230969,0.24644098,60948.0,60917.0,0.32884098]
[1727876230970,0.164107,60936.0,60932.0,0.24644098]
[1727876231177,0.1535,60939.0,60932.0,0.24644098]
[1727876231399,0.1535,60939.0,60933.0,0.24644098]
[1727876231643,0.0257286,60945.0,60934.0,0.24972276]
[1727876231951,0.0257286,60945.0,60927.0,0.005]
[1727876231952,0.24644098,60944.0,60927.0,0.005]
[1727876232157,0.164081,60946.0,60933.0,0.24644098]
[1727876232378,0.473445,60949.0,60933.0,0.24644098]
[1727876232379,0.1453,60949.0,60939.0,0.164096]
[1727876232592,0.1453,60949.0,60935.0,0.164108]
[1727876232593,0.16409,60942.0,60935.0,0.164108]
[1727876232809,0.3282,60939.0,60921.0,0.164146]
[1727876233024,0.164115,60933.0,60932.0,0.24644098]
[1727876233255,0.164115,60933.0,60917.0,0.24644098]
[1727876233256,0.164134,60926.0,60917.0,0.24644098]
[1727876233466,0.164154,60919.0,60917.0,0.24644098]
[1727876233683,0.1515,60930.0,60917.0,0.24644098]
[1727876233684,0.328272,60925.0,60917.0,0.24644098]
[1727876233886,0.1,60929.0,60905.0,0.25144098]
[1727876234098,0.1,60929.0,60915.0,0.24644098]
[1727876234309,0.164138,60924.0,60916.0,0.16416]
[1727876234534,0.16414,60924.0,60917.0,0.164155]
[1727876234748,0.328304,60920.0,60916.0,0.01556525]
[1727876234964,0.328304,60920.0,60917.0,0.009]
[1727876235177,0.328255,60929.0,60905.0,0.24644098]
[1727876235396,0.24644098,60926.0,60905.0,0.24644098]
[1727876235604,0.164187,60906.0,60905.0,0.24644098]
[1727876236037,0.328397,60902.0,60898.0,0.03295]
[1727876236257,0.1,60909.0,60904.0,0.164191]
[1727876236503,0.1,60921.0,60905.0,0.16706855]
[1727876236504,0.328319,60917.0,60905.0,0.16706855]
[1727876236780,0.164163,60916.0,60903.0,0.164194]
[1727876237005,0.24644098,60919.0,60907.0,0.49255]
[1727876237006,0.02574178,60908.0,60907.0,0.49255]
[1727876237214,0.32828,60924.0,60904.0,1.01764826]
[1727876237215,0.16415,60920.0,60914.0,0.164164]
[1727876237419,0.16415,60920.0,60911.0,0.328346]
[1727876237420,0.0257401,60913.0,60904.0,0.44282728]
[1727876237631,0.0257401,60913.0,60910.0,0.164175]
[1727876237847,0.0257401,60913.0,60907.0,0.328369]
[1727876238060,0.1899091,60913.0,60900.0,0.328404]
[1727876238330,0.1899091,60913.0,60908.0,0.164182]
[1727876238331,0.0257401,60913.0,60908.0,0.164182]
[1727876238542,0.164189,60906.0,60898.0,0.328416]
[1727876238752,0.164189,60906.0,60900.0,0.164202]
[1727876238962,0.1783401,60913.0,60904.0,0.164192]
[1727876238963,0.164178,60910.0,60904.0,0.164192]
[1727876239184,0.492518,60912.0,60907.0,0.014]
[1727876239402,0.492518,60912.0,60903.0,0.328389]
[1727876239403,0.1526,60913.0,60903.0,0.328389]
[1727876239642,0.02574209,60909.0,60905.0,0.328378]
[1727876239838,0.02574209,60909.0,60906.0,0.164186]
[1727876240062,0.02574209,60909.0,60908.0,0.164182]
[1727876240299,0.02574209,60909.0,60898.0,0.014]
[1727876240300,0.02574209,60909.0,60902.0,0.328393]
[1727876240517,0.02574209,60909.0,60898.0,0.014]
[1727876240751,0.1642,60902.0,60900.0,0.24644098]
[1727876240968,0.328364,60908.0,60900.0,0.24644098]
[1727876241192,0.328364,60908.0,60899.0,0.164205]
[1727876241193,0.164194,60904.0,60901.0,0.01340361]
[1727876241400,0.02574342,60907.0,60901.0,0.01340361]
[1727876241611,0.17964342,60907.0,60902.0,0.0133968]
[1727876241839,0.02574342,60907.0,60906.0,0.197137]
[1727876242316,0.02574342,60907.0,60906.0,0.31551347]
[1727876242526,0.02574342,60907.0,60906.0,0.21051347]
[1727876242739,0.02574342,60907.0,60906.0,0.17756347]
[1727876243172,0.24644098,60915.0,60911.0,0.164173]
[1727876243391,0.24644098,60915.0,60906.0,0.05732647]
[1727876243628,0.24644098,60926.0,60912.0,0.01333547]
[1727876243838,0.164156,60918.0,60912.0,0.16417]
[1727876244045,0.328299,60920.0,60906.0,0.011]
[1727876244265,0.328299,60920.0,60913.0,0.01332866]
[1727876244506,0.002,60946.0,60910.0,0.24644098]
[1727876244507,0.1,60925.0,60910.0,0.24644098]
[1727876244730,0.24644098,60925.0,60914.0,0.01332186]
[1727876244965,0.24644098,60925.0,60910.0,0.24644098]
[1727876244966,0.41057798,60925.0,60910.0,0.24644098]
[1727876245171,0.41057698,60925.0,60920.0,0.164149]
[1727876245377,0.57471298,60925.0,60916.0,0.328316]
[1727876245595,0.164139,60924.0,60921.0,0.01327423]
[1727876245810,0.24644098,60926.0,60906.0,0.328373]
[1727876246051,0.1,60931.0,60920.0,0.41058998]
[1727876246317,0.24644098,60926.0,60920.0,0.164148]
[1727876246525,0.164129,60928.0,60922.0,0.164141]